bitfinex-derivatives/quotes_ETHF0:USTF0_20240910
["timestamp","ask_amount","ask_price","bid_price","bid_amount"]
[1725981193390,0.5481,2340.0,2339.4,0.5398]
[1725981193590,0.42742,2339.5,2338.9,4.186]
[1725981193791,10.90509664,2339.9,2339.2,0.42745]
[1725981193792,1.06845,2339.7,2339.2,0.42745]
[1725981194000,0.42743,2339.5,2338.9,0.5178]
[1725981194183,0.42743,2339.5,2339.2,0.42746]
[1725981194385,0.34624153,2340.6,2339.4,3.7]
[1725981194685,0.216,2341.2,2340.3,0.42726]
[1725981194686,2.12422,2341.1,2340.3,0.42726]
[1725981194887,2.12422,2341.1,2339.9,3.7]
[1725981194888,1.06794,2340.9,2339.9,4.76833]
[1725981195106,2.12422,2341.1,2339.9,4.76833]
[1725981195107,1.06787,2341.0,2340.2,0.42728]
[1725981195289,0.42724,2340.5,2340.2,0.42727]
[1725981195486,0.42724,2340.5,2340.0,40.8]
[1725981195797,0.42725,2340.4,2340.2,0.42728]
[1725981195999,0.42725,2340.4,2340.1,0.4273]
[1725981196290,1.06787,2341.0,2340.0,40.8]
[1725981196484,0.42728,2340.3,2340.0,0.42732]
[1725981196690,0.4273,2340.2,2339.9,0.42734]
[1725981196890,0.42728,2340.3,2339.7,3.7]
[1725981197094,0.42728,2340.3,2340.0,0.42732]
[1725981197404,0.42729,2340.2,2340.0,0.42732]
[1725981198099,0.42729,2340.2,2338.6,0.428]
[1725981198100,1.06832,2340.0,2338.8,5.47086]
[1725981198287,4.788,2339.9,2339.4,0.42743]
[1725981198488,0.5567,2339.9,2338.9,4.2406]
[1725981198691,0.42729,2340.2,2339.3,1.06863]
[1725981198994,0.42733,2340.0,2339.8,0.42735]
[1725981199297,1.0823,2340.3,2339.8,0.42735]
[1725981199488,0.42731,2340.1,2339.9,0.42734]
[1725981199799,0.42733,2340.0,2339.8,0.42735]
[1725981200986,0.42733,2340.0,2339.7,0.42737]
[1725981201191,0.42732,2340.1,2339.8,0.42735]
[1725981201688,2.15051,2340.3,2339.7,0.42737]
[1725981201689,1.06823,2340.2,2339.7,0.42737]
[1725981201899,0.42735,2339.9,2339.7,0.42737]
[1725981202404,0.42734,2340.0,2339.8,0.42736]
[1725981202607,0.42732,2340.1,2339.4,0.5453]
[1725981202899,0.42733,2340.0,2339.7,0.42737]
[1725981203302,0.42733,2340.0,2339.8,0.42736]
[1725981203693,0.42733,2340.0,2339.7,0.42737]
[1725981203989,0.42735,2339.9,2339.7,0.42737]
[1725981204195,1.06823,2340.2,2339.4,0.5453]
[1725981204397,1.06823,2340.2,2339.7,0.42736]
[1725981204594,0.42737,2339.8,2339.6,0.42739]
[1725981204997,1.06827,2340.1,2339.5,0.4274]
[1725981204998,0.42738,2339.7,2339.5,0.4274]
[1725981205198,0.42739,2339.7,2339.5,0.42741]
[1725981205403,0.4274,2339.6,2339.4,0.42742]
[1725981206103,0.42739,2339.7,2339.5,0.42741]
[1725981206305,1.47607,2339.8,2339.6,0.42739]
[1725981207396,0.4274,2339.6,2339.5,0.42741]
[1725981207594,0.4274,2339.6,2339.4,0.42742]
[1725981207800,0.42746,2339.3,2338.8,40.8]
[1725981208007,0.42745,2339.4,2339.2,0.42746]
[1725981208306,1.60355,2339.7,2338.9,0.21151995]
[1725981208307,0.42742,2339.5,2339.3,0.42745]
[1725981208806,0.42746,2339.3,2339.1,0.42748]
[1725981208995,0.42744,2339.4,2339.2,0.42746]
[1725981209397,0.5351,2339.7,2339.0,1.06877]
[1725981209605,0.42743,2339.5,2339.3,0.42745]
[1725981209999,1.06853,2339.6,2339.0,0.42749]
[1725981210203,0.5351,2339.7,2339.1,0.21789142]
[1725981210406,0.42742,2339.5,2339.3,0.42744]
[1725981210906,0.42744,2339.4,2339.2,0.42746]
[1725981211206,0.42743,2339.5,2339.3,0.42745]
[1725981211607,0.42743,2339.4,2339.3,0.42745]
[1725981211808,0.42741,2339.6,2339.4,0.42743]
[1725981212111,0.5436,2339.8,2339.7,0.42738]
[1725981212306,0.97096,2339.8,2339.6,0.42739]
[1725981212603,0.5436,2339.8,2339.7,0.42738]
[1725981212805,0.97096,2339.8,2339.6,0.42738]
[1725981213406,0.5436,2339.8,2339.7,0.42738]
[1725981213606,0.97096,2339.8,2339.6,0.42739]
[1725981213808,0.5436,2339.8,2339.7,0.42738]
[1725981214206,0.94482,2340.1,2339.5,1.06853]
[1725981214405,0.94482,2340.1,2339.9,0.42734]
[1725981214620,0.5175,2340.1,2339.9,0.42734]
[1725981214905,0.5025,2340.2,2339.7,0.21111671]
[1725981215112,0.5025,2340.2,2340.0,0.42732]
[1725981215113,0.9298,2340.2,2340.0,0.42732]
[1725981215504,0.5025,2340.2,2340.0,0.42732]
[1725981215805,0.5025,2340.2,2339.8,0.20949159]
[1725981216010,0.5025,2340.2,2339.5,1.06855]
[1725981216208,0.92979,2340.2,2340.0,0.42732]
[1725981216609,0.5025,2340.2,2339.9,0.42733]
[1725981216908,0.9298,2340.2,2339.9,0.42733]
[1725981217213,0.42732,2340.1,2339.9,0.42734]
[1725981217404,0.42732,2340.1,2339.8,0.42735]
[1725981217606,0.42733,2340.0,2339.4,1.63700618]
[1725981217801,0.42731,2340.1,2339.8,0.42735]
[1725981218011,0.42733,2340.0,2339.8,0.42735]
[1725981218213,0.42732,2340.1,2339.8,0.42735]
[1725981218517,0.98337,2340.3,2340.0,0.42731]
[1725981219414,0.98337,2340.3,2340.1,0.4273]
[1725981220208,0.42729,2340.2,2339.8,0.543]
[1725981220404,0.98338,2340.3,2340.0,0.42731]
[1725981220604,0.42729,2340.2,2340.0,0.42731]
[1725981221007,0.42732,2340.1,2339.9,0.42734]
[1725981221603,0.42733,2340.0,2339.8,0.42735]
[1725981221912,1.6243,2340.3,2339.6,0.42739]
[1725981221913,0.42737,2339.8,2339.6,0.42739]
[1725981222318,0.42735,2339.9,2339.7,0.42738]
[1725981222617,1.6243,2340.3,2339.5,0.76050006]
[1725981222618,1.6243,2340.3,2339.8,0.42734]
[1725981222817,0.42735,2339.9,2339.7,0.42738]
[1725981223015,0.42734,2340.0,2339.5,0.76050006]
[1725981223220,0.42734,2340.0,2339.8,0.42735]
[1725981223614,0.42734,2339.9,2339.7,0.42737]
[1725981223915,1.06823,2340.2,2339.8,0.42734]
[1725981224112,0.5561,2340.3,2339.6,0.4274]
[1725981224418,0.42731,2340.1,2339.9,0.42733]
[1725981224714,0.42731,2340.1,2339.6,0.4274]
[1725981224715,0.5561,2340.3,2339.6,0.4274]
[1725981224923,0.42729,2340.2,2340.0,0.42732]
[1725981225320,0.94456,2340.4,2340.2,0.42729]
[1725981225821,0.42727,2340.3,2340.1,0.4273]
[1725981226723,0.42727,2340.3,2340.0,0.42731]
[1725981227117,0.42727,2340.3,2340.1,0.4273]
[1725981227326,0.5173,2340.4,2339.9,0.42733]
[1725981227632,0.42729,2340.2,2340.0,0.42731]
[1725981227813,0.42728,2340.3,2340.1,0.42731]
[1725981228018,0.42728,2340.3,2340.0,0.42731]
[1725981228218,0.42729,2340.2,2340.0,0.42731]
[1725981228517,0.5173,2340.4,2340.0,0.42731]
[1725981228715,0.42727,2340.3,2340.0,0.42731]
[1725981229721,0.42729,2340.2,2340.0,0.42731]
[1725981230320,0.5173,2340.4,2339.9,0.42734]
[1725981230321,0.42731,2340.1,2339.9,0.42734]
[1725981230521,0.42731,2340.1,2339.8,0.42735]
[1725981230720,0.42731,2340.1,2339.9,0.42734]
[1725981231330,0.4273,2340.2,2340.0,0.42732]
[1725981231729,0.42728,2340.3,2340.0,0.42732]
[1725981232323,0.94456,2340.4,2340.2,0.42728]
[1725981232733,1.11484353,2340.3,2339.8,2.17460822]
[1725981233031,0.94456,2340.4,2340.1,0.4273]
[1725981233222,1.11484353,2340.5,2340.1,3.0]
[1725981233431,0.5078,2340.6,2340.2,1.61521822]
[1725981233620,0.93502,2340.6,2340.2,1.61521822]
[1725981233824,0.42723,2340.5,2340.3,0.42726]
[1725981234522,1.54204353,2340.7,2340.2,1.61521822]
[1725981234723,0.4272,2340.7,2340.2,1.61521822]
[1725981235020,0.4272,2340.7,2340.4,0.42724]
[1725981235227,1.54206353,2340.6,2340.3,0.42726]
[1725981235423,1.11484353,2340.6,2340.2,0.93628]
[1725981235626,0.42726,2340.4,2340.2,0.509]
[1725981235825,0.42726,2340.4,2340.2,0.93628]
[1725981236024,0.42724,2340.5,2340.2,0.509]
[1725981236222,0.42724,2340.5,2340.2,0.93628]
[1725981236636,0.42724,2340.5,2340.3,0.42727]
[1725981236930,0.42724,2340.5,2340.2,2.04249822]
[1725981237129,0.42722,2340.6,2340.3,0.42727]
[1725981237719,1.11484353,2340.6,2340.2,0.93628]
[1725981237924,0.42725,2340.4,2340.2,0.509]
[1725981238529,0.42726,2340.4,2340.2,0.509]
[1725981238736,1.06814,2340.4,2340.1,1.10621822]
[1725981238939,0.42731,2340.1,2340.0,1.10621822]
[1725981239230,4.06825,2340.2,2339.7,1.10621822]
[1725981239429,0.42734,2339.9,2339.7,1.10621822]
[1725981239628,0.5267,2340.0,2339.7,1.10621822]
[1725981240330,0.5267,2340.0,2339.9,0.42734]
[1725981240737,0.5091,2340.3,2339.9,7.2736]
[1725981241032,0.42732,2340.0,2339.8,1.10621822]
[1725981241226,0.42732,2340.1,2339.8,1.53356822]
[1725981241423,1.64154353,2340.4,2339.9,3.0]
[1725981241625,0.5267,2340.4,2340.0,1.10621822]
[1725981241925,0.95396,2340.4,2340.1,0.4273]
[1725981242534,0.42728,2340.3,2340.0,1.53353822]
[1725981242834,0.42729,2340.2,2340.0,1.10621822]
[1725981243031,0.42729,2340.2,2339.9,2.08214822]
[1725981243236,1.54212353,2340.3,2340.0,0.42732]
[1725981243437,0.4273,2340.2,2339.9,0.97594]
[1725981243632,0.4273,2340.2,2339.9,2.08215822]
[1725981243836,1.64154353,2340.4,2340.0,0.42732]
[1725981243837,0.42728,2340.3,2340.0,0.42732]
[1725981244036,2.06880353,2340.4,2340.1,0.4273]
[1725981244235,1.64154353,2340.4,2340.0,1.10621822]
[1725981244435,0.5267,2340.4,2340.2,0.42728]
[1725981244831,1.67024353,2340.6,2340.1,4.10621822]
[1725981245142,2.08134353,2340.7,2340.5,0.42723]
[1725981245338,1.11484353,2340.7,2340.6,0.42721]
[1725981245536,1.11484353,2341.0,2340.5,4.53343822]
[1725981245739,0.42717,2340.9,2340.6,0.42721]
[1725981246631,0.4272,2340.7,2340.5,4.10621822]
[1725981246835,4.06791,2340.9,2340.5,1.10621822]
[1725981247031,0.42725,2340.4,2340.3,1.10621822]
[1725981247228,0.42725,2340.4,2340.1,1.10621822]
[1725981247229,0.42726,2340.4,2340.1,1.10621822]
[1725981247530,0.5127,2340.5,2340.1,4.10621822]
[1725981247727,0.93994,2340.5,2340.1,4.10621822]
[1725981247929,0.5127,2340.5,2340.0,1.10621822]
[1725981248130,0.42728,2340.3,2340.1,0.4273]
[1725981248346,0.42726,2340.4,2340.1,0.4273]
[1725981248536,0.42726,2340.4,2340.2,0.42729]
[1725981248732,1.64334353,2340.7,2340.5,0.42723]
[1725981249036,1.64334353,2340.7,2340.6,0.42721]
[1725981249037,0.5285,2340.7,2340.6,0.42721]
[1725981249433,0.42717,2340.9,2340.6,4.69921]
[1725981249636,0.42717,2340.9,2340.6,0.42721]
[1725981250135,1.98313,2341.1,2340.6,3.0]
[1725981250443,0.42715,2341.0,2340.8,3.0]
[1725981250744,0.42715,2341.0,2340.8,3.42718]
[1725981250944,0.42717,2340.9,2340.7,0.4272]
[1725981251134,0.42718,2340.8,2340.6,3.42721]
[1725981251337,0.42714,2341.0,2340.7,0.42719]
[1725981252045,1.06791,2340.9,2340.5,1.10621822]
[1725981252250,2.18273353,2341.0,2340.3,3.0]
[1725981252436,0.42719,2340.8,2340.3,3.0]
[1725981252637,0.42717,2340.9,2340.6,0.4272]
[1725981252942,0.4272,2340.7,2340.5,3.0]
[1725981253240,0.42722,2340.6,2340.4,0.42724]
[1725981253543,0.42721,2340.7,2340.5,0.42723]
[1725981253749,2.18272353,2341.0,2340.4,0.42724]
[1725981253750,0.42721,2340.6,2340.4,0.42724]
[1725981254044,0.42723,2340.6,2340.3,3.42725]
[1725981254243,0.42724,2340.5,2340.3,3.42725]
[1725981254446,0.42724,2340.5,2340.3,3.0]
[1725981254944,0.42727,2340.3,2340.1,1.53351822]
[1725981255247,0.42728,2340.3,2340.1,0.4273]
[1725981255448,0.42728,2340.3,2340.0,1.60701822]
[1725981255449,0.42728,2340.3,2340.0,2.03432822]
[1725981255638,1.0423,2340.4,2339.9,4.10621822]
[1725981255838,0.4273,2340.2,2339.9,3.0]
[1725981256044,0.42731,2340.1,2339.9,4.53355822]
[1725981256436,2.11046,2340.4,2339.9,4.10621822]
[1725981256643,0.42732,2340.1,2339.9,4.10621822]
[1725981256944,0.4273,2340.2,2339.9,4.53354822]
[1725981257138,0.42731,2340.1,2339.9,4.53354822]
[1725981257448,0.4273,2340.2,2339.9,4.53354822]
[1725981258449,2.15714353,2340.4,2339.9,4.10621822]
[1725981258749,1.11484353,2340.6,2340.3,3.0]
[1725981258950,2.18054353,2340.7,2340.4,0.42724]
[1725981259144,2.18054353,2340.7,2340.3,3.42726]
[1725981259145,0.42721,2340.6,2340.3,3.42726]
[1725981259444,1.54205353,2340.6,2340.3,3.42726]
[1725981259650,0.42723,2340.5,2340.3,3.42726]
[1725981259950,0.42725,2340.4,2340.1,4.10621822]
[1725981260147,0.42724,2340.5,2340.2,1.10621822]
[1725981260347,0.42724,2340.5,2340.3,2.20141791]
[1725981260548,0.42723,2340.6,2340.4,0.42724]
[1725981260853,0.42723,2340.6,2340.4,1.53345822]
[1725981261153,0.42723,2340.6,2340.4,1.10621822]
[1725981261360,1.0657,2340.7,2340.4,1.10621822]
[1725981261650,1.0657,2340.7,2340.3,5.18698802]
[1725981261651,0.42723,2340.5,2340.3,5.06237822]
[1725981262549,2.18054353,2340.7,2340.3,1.63511822]
[1725981262746,1.54208353,2340.5,2340.3,0.95616]
[1725981263054,0.42724,2340.5,2340.3,0.95616]
[1725981263247,0.42724,2340.5,2340.3,2.06237822]
[1725981263447,0.42725,2340.4,2340.2,1.10621822]
[1725981263643,0.42724,2340.5,2340.3,3.0]
[1725981263843,1.11484353,2340.5,2340.3,3.42726]
[1725981264043,0.42724,2340.5,2340.3,3.42726]
[1725981264547,0.42724,2340.5,2340.3,4.53347822]
[1725981264754,0.42724,2340.5,2340.3,4.10621822]
[1725981264941,0.42727,2340.4,2340.2,1.10621822]
[1725981265249,0.42727,2340.4,2340.1,1.65808802]
[1725981265250,1.11484353,2340.4,2340.3,0.42726]
[1725981265443,0.42724,2340.5,2340.3,0.42727]
[1725981265839,1.54206353,2340.6,2340.4,0.42724]
[1725981266239,1.11484353,2340.6,2340.3,3.0]
[1725981266446,1.11484353,2340.6,2340.3,3.42726]
[1725981266447,0.42723,2340.5,2340.3,3.42726]
[1725981267053,1.54206353,2340.6,2340.4,0.42725]
[1725981267249,2.07905353,2340.7,2340.5,3.42723]
[1725981267449,0.537,2340.7,2340.5,3.42722]
[1725981267653,0.42725,2340.5,2340.2,4.53348822]
[1725981267850,0.42723,2340.5,2340.3,1.77419734]
[1725981268044,0.42723,2340.5,2340.3,1.53347822]
[1725981268248,1.11484353,2340.6,2340.3,1.10621822]
[1725981268447,1.11484353,2340.6,2340.3,4.10621822]
[1725981268652,2.07905353,2340.7,2340.5,0.42723]
[1725981268852,0.42723,2340.6,2340.4,1.10621822]
[1725981269149,2.07905353,2340.7,2340.4,1.53346822]
[1725981269748,2.07905353,2340.7,2340.5,0.42723]
[1725981269749,0.96421,2340.7,2340.5,0.42723]
[1725981269949,0.96421,2340.7,2340.5,1.10621822]
[1725981269950,0.537,2340.7,2340.5,1.10621822]
[1725981270153,1.65184353,2340.7,2340.4,1.53345822]
[1725981270348,1.54206353,2340.6,2340.4,0.42724]
[1725981270549,1.11484353,2340.5,2340.2,1.10621822]
[1725981270749,1.11484353,2340.5,2340.4,1.10621822]
[1725981270750,0.42723,2340.5,2340.4,1.10621822]
[1725981270947,0.42723,2340.6,2340.4,0.66797167]
[1725981271151,0.42723,2340.6,2340.4,1.53345822]
[1725981271859,1.65184353,2340.7,2340.5,0.42723]
[1725981272059,0.96421,2340.7,2340.5,0.42722]
[1725981272253,0.96421,2340.7,2340.5,1.53343822]
[1725981272458,1.11484353,2340.8,2340.6,0.4272]
[1725981273058,1.11484353,2340.8,2340.5,1.65821822]
[1725981273449,1.11484353,2340.8,2340.6,0.42721]
[1725981273858,1.11484353,2340.8,2340.5,2.08543822]
[1725981273859,1.54203353,2340.8,2340.5,2.08543822]
[1725981274267,1.11484353,2340.8,2340.5,1.65821822]
[1725981274566,0.4272,2340.7,2340.5,1.65821822]
[1725981274768,0.42721,2340.7,2340.5,1.10621822]
[1725981275061,0.42721,2340.6,2340.5,1.10621822]
[1725981275267,1.11484353,2340.8,2340.5,1.77412896]
[1725981275268,1.11484353,2340.7,2340.5,1.77412896]
[1725981275563,0.42723,2340.6,2340.4,1.10621822]
[1725981275963,1.11484353,2340.6,2340.3,1.10621822]
[1725981276165,1.06823,2340.2,2340.0,1.10621822]
[1725981276471,1.06823,2340.2,2339.7,3.70845003]
[1725981276472,0.42736,2339.8,2339.7,1.10621822]
[1725981276667,1.11691287,2339.8,2339.5,1.10621822]
[1725981276965,0.95529,2339.7,2339.5,1.10621822]
[1725981277163,0.42741,2339.6,2339.4,41.90621822]
[1725981277362,0.5279,2339.7,2339.4,41.90621822]
[1725981277363,0.5279,2339.7,2339.4,42.11689189]
[1725981277677,0.95529,2339.7,2339.4,42.11689189]
[1725981278053,0.5279,2339.7,2339.4,1.10621822]
[1725981278454,0.42749,2339.1,2338.9,2.76430624]
[1725981278657,0.42753,2338.9,2338.7,1.10621822]
[1725981278861,0.42753,2338.9,2338.6,1.10621822]
[1725981279061,0.42753,2338.9,2338.4,42.42451822]
[1725981279265,4.50812,2339.0,2338.5,1.10621822]
[1725981279459,0.5404,2339.0,2338.7,3.0]
[1725981279673,0.5404,2339.0,2338.8,0.21815422]
[1725981280357,0.5404,2339.0,2338.7,3.42755]
[1725981280657,0.5189,2339.3,2338.7,8.38221822]
[1725981280858,0.5189,2339.3,2338.8,0.42754]
[1725981280859,0.94636,2339.3,2338.8,0.42754]
[1725981281063,0.94636,2339.3,2338.7,4.32469483]
[1725981281557,0.94636,2339.3,2338.8,0.42753]
[1725981282460,0.94636,2339.3,2338.7,3.21847661]
[1725981282461,0.5189,2339.3,2338.9,0.42752]
[1725981282660,0.94636,2339.3,2338.9,3.42752]
[1725981282960,0.5189,2339.3,2338.9,3.42752]
[1725981283162,0.5189,2339.3,2339.0,0.42751]
[1725981283355,0.97904,2339.4,2338.9,3.42752]
[1725981283668,0.42746,2339.3,2338.9,3.0]
[1725981284471,0.42746,2339.3,2338.9,3.42752]
[1725981284674,0.97904,2339.4,2339.0,0.4275]
[1725981285061,0.42745,2339.3,2339.0,0.4275]
[1725981285366,0.42745,2339.3,2338.9,3.42751]
[1725981286168,0.42745,2339.3,2339.0,0.92989]
[1725981286859,0.5516,2339.4,2339.0,0.5024]
[1725981287061,0.42746,2339.3,2339.0,0.5024]
[1725981287257,0.42746,2339.3,2338.9,3.0]
[1725981287769,0.42746,2339.3,2338.7,0.21847661]
[1725981287770,1.06864,2339.3,2338.7,0.64602661]
[1725981287971,0.4275,2339.1,2338.8,0.42754]
[1725981288770,0.5516,2339.4,2338.6,3.73811189]
[1725981289065,0.5516,2339.4,2339.1,3.0]
[1725981289273,0.42738,2339.7,2339.3,3.0]
[1725981289464,0.5356,2339.8,2339.5,0.4274]
[1725981289665,0.96297,2339.8,2339.5,3.4274]
[1725981290159,0.5074,2340.1,2339.7,3.42738]
[1725981290557,0.93471,2340.1,2339.7,3.42737]
[1725981290867,0.5057,2340.2,2339.9,0.42733]
[1725981291072,0.5057,2340.2,2340.1,3.0]
[1725981291271,0.5057,2340.2,2340.1,3.2155967]
[1725981291574,0.5057,2340.2,2340.1,7.4891967]
[1725981292660,0.5057,2340.2,2339.9,3.0]
[1725981293173,0.933,2340.2,2340.0,0.21385755]
[1725981293863,0.933,2340.2,2339.9,3.0]
[1725981293864,0.5057,2340.2,2339.8,40.8]
[1725981294071,0.5057,2340.2,2339.6,0.42739]
[1725981294072,0.42732,2340.1,2339.6,0.42739]
[1725981294470,0.5057,2340.2,2339.6,40.8]
[1725981294864,0.42734,2340.0,2339.6,40.8]
[1725981295168,0.42734,2340.0,2339.5,0.42741]
[1725981295370,0.42735,2339.9,2339.5,0.42741]
[1725981295672,0.5057,2340.2,2339.6,0.42739]
[1725981295673,0.42733,2340.0,2339.6,0.42739]
[1725981296063,0.42732,2340.1,2339.7,0.42737]
[1725981296263,0.42735,2339.9,2339.5,40.8]
[1725981296562,0.42736,2339.8,2339.5,40.8]
[1725981296762,1.57396,2340.2,2339.5,41.22741]
[1725981297066,0.42734,2339.9,2339.6,0.42739]
[1725981297269,0.42734,2340.0,2339.6,0.42739]
[1725981297464,0.42734,2339.9,2339.6,0.42739]
[1725981298168,0.42736,2339.9,2339.5,0.42741]
[1725981298375,1.57396,2340.2,2339.5,0.42741]
[1725981298972,0.42735,2339.9,2339.5,0.42741]
[1725981299565,0.42737,2339.8,2339.5,0.42741]
[1725981300066,0.42739,2339.7,2339.4,0.96912]
[1725981300276,0.42737,2339.8,2339.5,0.42741]
[1725981300572,1.57394,2340.2,2339.3,44.991]
[1725981300775,0.42733,2340.0,2339.7,0.42737]
[1725981300964,0.42734,2339.9,2339.7,0.42737]
[1725981301164,0.42734,2340.0,2339.7,0.42737]
[1725981301363,0.5057,2340.2,2339.7,0.42737]
[1725981301364,0.42734,2339.9,2339.7,0.42737]
[1725981301567,1.06827,2340.1,2339.3,0.501]
[1725981301778,0.5057,2340.2,2339.3,4.191]
[1725981301966,0.42731,2340.1,2339.6,3.69]
[1725981302164,1.0083,2340.2,2339.7,0.5012]
[1725981302364,0.42731,2340.1,2339.8,0.63851732]
[1725981302671,0.42731,2340.1,2339.9,0.42734]
[1725981302861,4.144,2340.5,2340.0,4.70092]
[1725981303067,4.686,2340.5,2340.1,0.21901446]
[1725981303271,0.42726,2340.4,2340.1,0.4273]
[1725981303482,0.542,2340.5,2340.1,0.21512296]
[1725981303483,0.42727,2340.3,2340.1,0.21512296]
[1725981303661,0.542,2340.5,2340.0,0.42731]
[1725981303864,0.4273,2340.2,2339.9,0.42734]
[1725981304060,0.42728,2340.3,2340.0,0.42732]
[1725981304273,0.42726,2340.4,2340.1,0.42731]
[1725981304468,0.42726,2340.4,2340.1,0.4273]
[1725981304782,0.96924,2340.5,2340.2,0.42728]
[1725981304972,0.42726,2340.4,2340.1,0.4273]
[1725981305173,0.42728,2340.3,2340.0,0.42732]
[1725981305577,0.542,2340.5,2339.8,41.01327905]
[1725981305769,0.4273,2340.2,2339.9,0.42734]
[1725981306078,1.61012,2340.5,2339.8,41.01327905]
[1725981306264,1.61012,2340.5,2339.7,0.5012]
[1725981306265,1.06818,2340.3,2339.7,0.5012]
[1725981306465,0.42733,2340.0,2339.7,0.92857]
[1725981306666,0.42736,2339.8,2339.7,0.5012]
[1725981306865,0.5246,2339.9,2339.3,0.5037]
[1725981307072,1.0685,2339.6,2338.9,1.60991822]
[1725981307269,0.42744,2339.4,2339.1,0.42748]
[1725981307474,0.4938,2339.7,2339.1,40.8]
[1725981307475,0.42746,2339.3,2339.1,40.8]
[1725981307776,0.42746,2339.3,2339.0,0.42749]
[1725981307966,1.06859,2339.4,2338.8,0.42753]
[1725981308170,0.4988,2339.2,2338.8,41.22753]
[1725981308370,0.4988,2339.2,2338.8,40.8]
[1725981308670,0.42752,2339.0,2338.7,0.42756]
[1725981308873,0.4938,2339.1,2338.7,0.42756]
[1725981308874,0.9213,2339.1,2338.7,0.42756]
[1725981309069,0.4938,2339.1,2338.6,0.63908189]
[1725981309468,0.4938,2339.1,2338.5,0.546]
[1725981309469,0.4938,2339.1,2338.5,0.9736]
[1725981309667,0.42753,2338.9,2338.5,0.9736]
[1725981309974,0.42755,2338.8,2338.4,0.42761]
[1725981310274,0.4944,2339.0,2338.2,4.79621822]
[1725981310275,0.42753,2338.9,2338.5,0.4276]
[1725981310666,0.4944,2339.0,2338.5,0.4276]
[1725981310667,0.4944,2339.0,2338.5,3.69]
[1725981310875,0.4944,2339.0,2338.7,0.42755]
[1725981311176,0.92628,2339.2,2338.8,0.42754]
[1725981311679,0.92628,2339.2,2339.0,0.42751]
[1725981311680,0.4988,2339.2,2339.0,0.42751]
[1725981311978,0.4988,2339.2,2338.5,4.79621822]
[1725981311979,0.4988,2339.2,2338.9,0.42751]
[1725981312168,0.4988,2339.2,2338.9,0.6433141]
[1725981312366,0.4988,2339.2,2338.9,0.2158041]
[1725981312570,0.92628,2339.2,2338.8,0.42753]
[1725981312769,0.4988,2339.2,2339.0,0.4275]
[1725981312969,5.81936931,2340.1,2339.0,3.69]
[1725981313173,0.5355,2339.9,2339.1,0.5461]
[1725981313370,0.96285,2339.9,2339.3,3.69]
[1725981313570,4.144,2340.1,2339.4,40.8]
[1725981313765,4.57131,2340.1,2339.7,0.42737]
[1725981313967,0.42731,2340.1,2339.4,40.8]
[1725981314175,4.06817,2340.4,2339.6,3.0]
[1725981314376,0.42728,2340.3,2339.9,0.42733]
[1725981314579,0.42728,2340.3,2339.8,3.0]
[1725981314775,0.42726,2340.4,2340.0,0.42732]
[1725981315076,0.42729,2340.2,2339.9,0.42733]
[1725981315481,0.42731,2340.1,2339.8,3.42735]
[1725981315776,0.4273,2340.2,2339.6,3.5249]
[1725981316285,0.42728,2340.3,2339.9,0.42734]
[1725981316582,0.42728,2340.3,2339.6,0.5249]
[1725981316776,0.42728,2340.3,2339.9,0.42733]
[1725981316966,1.5518,2340.5,2340.1,0.42729]
[1725981316967,1.97904,2340.5,2340.1,0.42729]
[1725981317167,1.5518,2340.5,2339.7,4.79621822]
[1725981317371,1.5518,2340.5,2340.1,0.42729]
[1725981317372,1.97904,2340.5,2340.1,0.42729]
[1725981317667,4.144,2340.7,2340.2,0.42728]
[1725981317668,0.42723,2340.6,2340.2,0.42728]
[1725981318382,0.42723,2340.5,2340.2,0.42728]
[1725981318678,0.5303,2340.8,2340.1,0.42729]
[1725981318679,0.42725,2340.4,2340.1,0.42729]
[1725981318880,1.59829,2340.8,2339.8,4.6933]
[1725981318881,0.5303,2340.8,2339.8,4.6933]
[1725981319179,0.42721,2340.7,2340.0,3.69]
[1725981319489,0.42721,2340.7,2340.4,0.42724]
[1725981319774,0.5303,2340.8,2340.4,0.42724]
[1725981319775,0.42719,2340.8,2340.5,0.42722]
[1725981319984,1.0096,2340.9,2340.3,0.42725]
[1725981320171,0.42721,2340.7,2340.4,0.42725]
[1725981320880,0.42721,2340.7,2340.5,0.42723]
[1725981321181,1.0096,2340.9,2340.6,0.42721]
[1725981321390,1.43677,2340.9,2340.7,0.42719]
[1725981321573,0.42712,2341.1,2340.9,0.42715]
[1725981321773,0.42712,2341.1,2340.6,3.69]
[1725981321774,0.42717,2340.9,2340.6,0.4272]
[1725981321969,1.06782,2341.1,2340.6,0.42721]
[1725981322283,0.42717,2340.9,2340.7,0.4272]
[1725981322579,0.4933,2341.2,2340.6,40.8]
[1725981322580,0.42719,2340.8,2340.6,40.8]
[1725981322787,0.4272,2340.7,2340.6,40.8]
[1725981323077,0.42721,2340.6,2340.2,4.7052]
[1725981323282,1.06793,2340.9,2340.4,0.42723]
[1725981323283,0.42721,2340.7,2340.4,0.42723]
[1725981323485,0.42721,2340.7,2340.2,0.5192]
[1725981323486,0.42721,2340.7,2340.5,41.44479045]
[1725981323674,0.42721,2340.6,2340.5,40.8]
[1725981324075,0.42728,2340.3,2340.1,0.4273]
[1725981324276,0.42728,2340.3,2339.8,6.29721822]
[1725981324473,0.42731,2340.1,2339.9,40.8]
[1725981324677,0.42731,2340.1,2339.8,0.92505]
[1725981324885,0.42731,2340.1,2339.9,0.42734]
[1725981325284,0.42731,2340.1,2339.8,0.4977]
[1725981325285,0.42733,2340.0,2339.8,0.4977]